bitfinex-derivatives/quotes_SOLF0:USTF0_20241011
["timestamp","ask_amount","ask_price","bid_price","bid_amount"]
[1728684413762,3.4243,146.01,145.96,4.92]
[1728684413763,3.4249,145.99,145.96,4.92]
[1728684414967,3.4249,145.98,145.96,4.92]
[1728684418957,3.4248,145.99,145.96,4.92]
[1728684422369,3.9554,146.02,145.97,8.41]
[1728684422665,8.53502,146.03,145.97,8.41]
[1728684424383,3.4241,146.02,145.99,3.4246]
[1728684425275,3.4241,146.02,145.98,3.4248]
[1728684425575,3.4243,146.01,145.98,3.4248]
[1728684427875,3.4241,146.02,145.98,3.4248]
[1728684429577,8.53502,146.03,145.96,4.92]
[1728684429773,11.8344,146.01,145.97,3.4251]
[1728684430270,3.4245,146.0,145.97,3.4251]
[1728684430572,8.41,146.01,145.91,0.12502]
[1728684430772,0.12502,146.03,145.96,8.41]
[1728684431068,3.4244,146.01,145.96,8.41]
[1728684431274,3.4244,146.01,145.96,13.33]
[1728684432376,3.4244,146.01,145.97,3.425]
[1728684434967,3.4244,146.01,145.98,8.41]
[1728684435274,3.54882,146.03,145.99,16.7547]
[1728684436171,0.12502,146.03,145.99,16.7547]
[1728684436371,3.4241,146.02,145.99,4.92]
[1728684443878,3.4243,146.01,145.99,4.92]
[1728684447082,8.41,146.01,145.94,1.3721]
[1728684447288,0.12502,146.03,145.95,4.9]
[1728684447289,8.41,145.98,145.95,4.9]
[1728684447584,8.41,145.98,145.93,2.8301]
[1728684447775,8.41,145.97,145.88,1.4212]
[1728684447992,8.41,145.97,145.92,13.31]
[1728684448286,3.4256,145.95,145.92,4.9]
[1728684448679,8.41,145.97,145.92,4.9]
[1728684448878,3.4256,145.95,145.92,4.9]
[1728684450280,3.4259,145.95,145.92,4.9]
[1728684450673,8.41,145.94,145.91,0.12502]
[1728684450980,3.48495666,146.0,145.91,0.12502]
[1728684450981,8.41,145.92,145.91,0.12502]
[1728684451387,11.8363,145.92,145.91,0.12502]
[1728684455786,8.931,145.95,145.91,0.12502]
[1728684455987,3.426,145.94,145.91,0.12502]
[1728684456787,3.4261,145.93,145.91,0.12502]
[1728684460804,11.8361,145.93,145.91,0.12502]
[1728684461605,8.41,145.93,145.91,0.12502]
[1728684462213,11.8362,145.93,145.91,0.12502]
[1728684464614,8.41,145.93,145.91,0.12502]
[1728684464806,3.4263,145.92,145.91,0.12502]
[1728684467814,8.41,145.93,145.91,0.12502]
[1728684468109,11.8362,145.93,145.91,0.12502]
[1728684469109,2.6956,145.99,145.91,0.12502]
[1728684469110,4.9,145.97,145.91,3.55152]
[1728684469510,8.41,145.96,145.91,3.55152]
[1728684469816,3.4258,145.95,145.91,3.55152]
[1728684470810,11.8354,145.97,145.92,13.31]
[1728684471011,8.41,145.97,145.92,13.31]
[1728684471918,8.41,145.97,145.94,3.4257]
[1728684472519,11.8352,145.97,145.94,3.4257]
[1728684473421,3.4252,145.97,145.94,11.8357]
[1728684484528,3.4254,145.96,145.93,3.426]
[1728684486725,3.4254,145.96,145.93,11.836]
[1728684489129,3.4252,145.97,145.93,11.836]
[1728684489328,4.98502,146.09,146.0,3.4245]
[1728684489528,11.8249767,146.06,146.0,16.6945]
[1728684489730,3.4237,146.04,146.0,13.27]
[1728684490828,3.4237,146.04,146.0,16.6944]
[1728684494132,3.4237,146.04,146.0,4.86]
[1728684494337,3.4242,146.01,146.0,4.86]
[1728684494533,8.41,146.04,146.0,4.86]
[1728684494929,8.41,146.02,146.0,4.86]
[1728684495135,8.41,146.02,145.97,13.27]
[1728684495335,8.41,146.02,145.98,4.86]
[1728684495537,8.41,146.02,145.97,3.425]
[1728684495730,8.41,145.99,145.92,73.98]
[1728684495931,8.41,145.98,145.93,4.86]
[1728684496132,8.41,145.98,145.93,13.27]
[1728684496332,3.4253,145.97,145.93,16.6961]
[1728684497739,3.4253,145.97,145.94,3.4259]
[1728684498240,8.41,145.98,145.94,3.4259]
[1728684498543,8.41,145.98,145.93,8.2861]
[1728684498739,8.41,145.97,145.93,4.86]
[1728684499039,8.41,145.94,145.91,0.12502]
[1728684499233,8.41,145.92,145.91,0.12502]
[1728684500143,11.8363,145.92,145.91,0.12502]
[1728684500342,3.4263,145.92,145.91,0.12502]
[1728684500941,11.8363,145.92,145.91,0.12502]
[1728684503336,3.4263,145.92,145.91,0.12502]
[1728684505453,3.4262,145.93,145.91,0.12502]
[1728684507443,3.4263,145.92,145.91,0.12502]
[1728684508244,3.4259,145.94,145.91,0.12502]
[1728684508445,8.41,145.94,145.91,0.12502]
[1728684510547,3.4262,145.93,145.91,0.12502]
[1728684512856,8.41,145.94,145.91,0.12502]
[1728684513052,11.8359,145.94,145.91,0.12502]
[1728684513243,8.41,145.94,145.91,0.12502]
[1728684513448,3.4261,145.93,145.91,0.12502]
[1728684514051,8.41,145.94,145.91,0.12502]
[1728684514249,3.4263,145.92,145.91,0.12502]
[1728684515253,11.8363,145.92,145.91,0.12502]
[1728684516951,3.4277,145.86,145.82,4.94]
[1728684517160,11.8377,145.86,145.82,4.94]
[1728684519259,8.41,145.86,145.8,0.12518]
[1728684519454,8.41,145.83,145.8,0.12518]
[1728684520348,3.4289,145.81,145.8,0.12518]
[1728684526960,11.8389,145.81,145.8,0.12518]
[1728684528359,3.4289,145.81,145.8,0.12518]
[1728684528661,4.94,145.84,145.8,8.53518]
[1728684528855,8.41,145.85,145.8,8.53518]
[1728684529467,6.2475,145.86,145.8,8.53518]
[1728684529658,8.41,145.85,145.8,8.53518]
[1728684529860,6.2475,145.86,145.8,8.53518]
[1728684530055,8.41,145.85,145.8,8.53518]
[1728684530259,3.4288,145.82,145.8,8.53518]
[1728684530963,8.41,145.88,145.81,13.35]
[1728684531161,8.41,145.88,145.83,8.41]
[1728684531361,8.41,145.87,145.83,8.41]
[1728684531564,3.4284,145.84,145.82,8.41]
[1728684532266,3.4284,145.84,145.81,4.94]
[1728684532471,3.4285,145.83,145.82,8.41]
[1728684534064,3.4282,145.84,145.82,8.41]
[1728684534270,8.41,145.87,145.82,8.41]
[1728684534671,3.4282,145.85,145.82,8.41]
[1728684538277,3.4283,145.84,145.82,8.41]
[1728684539274,3.4283,145.84,145.81,16.7789]
[1728684540476,8.41,145.85,145.81,4.94]
[1728684540676,8.41,145.83,145.81,4.94]
[1728684540976,8.41,145.87,145.81,13.35]
[1728684541176,3.4282,145.84,145.81,16.7787]
[1728684542077,8.41,145.87,145.81,16.7787]
[1728684542269,3.4281,145.85,145.82,3.4287]
[1728684543180,4.94,145.89,145.81,13.35]
[1728684543181,4.94,145.89,145.83,8.41]
[1728684543367,3.4277,145.87,145.83,11.8384]
[1728684543572,95.81685595,145.91,145.83,8.41]
[1728684543780,3.4274,145.88,145.85,8.41]
[1728684543977,95.81685595,145.91,145.85,8.41]
[1728684543978,8.41,145.9,145.85,8.41]
[1728684544280,8.41,145.9,145.84,16.7781]
[1728684544480,8.41,145.9,145.84,4.94]
[1728684544679,8.41,145.89,145.84,13.35]
[1728684545971,3.4277,145.87,145.84,13.35]
[1728684549780,8.41,145.86,145.8,4.34358]
[1728684549979,3.4284,145.84,145.81,8.3688]
[1728684552081,8.41,145.87,145.83,8.41]
[1728684552380,8.41,145.88,145.83,8.41]
[1728684552680,8.41,145.88,145.84,8.41]
[1728684552882,8.41,145.88,145.85,8.41]
[1728684552883,3.4274,145.88,145.85,8.41]
[1728684553184,95.81685595,145.91,145.85,8.41]
[1728684553185,8.41,145.9,145.85,8.41]
[1728684554377,3.4276,145.87,145.85,8.41]
[1728684556692,8.41,145.9,145.85,8.41]
[1728684558086,3.4278,145.87,145.84,16.7785]
[1728684559283,8.41,145.89,145.84,4.94]
[1728684559983,3.4282,145.86,145.84,4.94]
[1728684560988,3.4282,145.86,145.84,13.35]
[1728684561486,3.4279,145.87,145.84,16.7785]
[1728684571796,3.4275,145.89,145.85,3.4281]
[1728684574793,0.12502,145.91,145.87,8.41]
[1728684574991,0.12502,145.91,145.87,13.35]
[1728684575385,3.55202,145.91,145.88,3.4274]
[1728684575584,3.55202,145.91,145.88,11.8374]
[1728684575894,3.55202,145.91,145.88,3.4274]
[1728684578396,11.8373,145.9,145.87,4.94]
[1728684578693,11.8373,145.9,145.86,4.8182]
[1728684578899,8.41,145.9,145.87,4.94]
[1728684579197,3.4274,145.89,145.87,4.94]
[1728684579899,3.4272,145.9,145.87,16.7778]
[1728684581496,3.4272,145.9,145.87,216.7778]
[1728684583599,3.55202,145.91,145.88,3.4276]
[1728684583800,3.55202,145.91,145.87,213.35]
[1728684584300,3.4271,145.9,145.87,216.7777]
[1728684584906,0.12502,145.91,145.87,204.94]
[1728684585195,3.4272,145.9,145.87,204.94]
[1728684588505,3.4272,145.9,145.87,208.3678]
[1728684592407,3.4272,145.9,145.87,204.94]
[1728684594712,3.4272,145.9,145.87,4.94]
[1728684595907,3.4272,145.9,145.87,8.3678]
[1728684599811,8.41,145.88,145.8,74.14518]
[1728684600014,3.4282,145.86,145.82,3.4289]
[1728684600211,11.8382,145.86,145.82,3.4289]
[1728684600910,11.8382,145.86,145.83,4.88]
[1728684601209,3.4285,145.84,145.83,4.88]
[1728684601410,8.41,145.84,145.82,4.88]
[1728684601916,8.41,145.84,145.8,5.00518]
[1728684602213,8.41,145.82,145.8,5.00518]
[1728684602401,11.8391,145.82,145.8,5.00518]
[1728684603011,3.4291,145.82,145.8,5.00518]
[1728684603210,3.4289,145.83,145.8,0.12518]
[1728684603417,3.4289,145.83,145.8,5.00518]
[1728684604712,3.4289,145.83,145.8,0.12518]
[1728684604915,3.4289,145.83,145.8,5.00518]
[1728684606513,8.22440568,145.89,145.8,13.41518]
[1728684606817,8.41,145.85,145.8,13.41518]
[1728684607714,3.4288,145.83,145.8,5.00518]
[1728684609924,3.4288,145.83,145.8,0.12518]
[1728684614227,3.4286,145.84,145.8,11.96458]
[1728684614620,3.4286,145.84,145.8,0.12518]
[1728684615529,3.4288,145.83,145.8,3.55448]
[1728684617425,104.2132004,145.89,145.8,8.53518]
[1728684617628,8.41,145.86,145.8,8.53518]
[1728684617825,11.8382,145.86,145.82,3.429]
[1728684618425,11.8382,145.86,145.82,11.8388]
[1728684618622,3.4284,145.85,145.81,8.41]
[1728684618931,3.4284,145.85,145.81,11.839]
[1728684619430,3.4284,145.85,145.81,8.41]
[1728684619731,3.4284,145.85,145.82,3.429]
[1728684623831,3.4287,145.84,145.8,22.77122448]
[1728684624135,3.4287,145.84,145.8,31.18122448]
[1728684626541,104.26487234,145.89,145.81,8.41]
[1728684626739,8.41,145.86,145.82,3.429]
[1728684627137,11.8382,145.86,145.82,8.309]
[1728684628032,100.86879472,145.89,145.82,16.719]
[1728684628238,3.4284,145.85,145.82,16.719]
[1728684628441,11.8384,145.85,145.82,8.309]
[1728684629238,8.41,145.85,145.82,8.309]
[1728684629437,3.4281,145.86,145.82,8.309]
[1728684631149,11.838,145.87,145.83,3.4286]
[1728684632343,3.428,145.87,145.82,4.88]
[1728684632549,11.838,145.87,145.84,3.4285]
[1728684634546,11.838,145.87,145.83,3.4287]
[1728684635043,95.98879472,145.89,145.82,4.88]
[1728684635044,8.41,145.86,145.82,4.88]
[1728684635448,3.4285,145.85,145.82,4.88]
[1728684636247,3.4285,145.85,145.82,8.309]
[1728684638353,8.41,145.86,145.82,8.309]
[1728684638557,11.8382,145.86,145.82,8.309]
[1728684643761,3.4282,145.86,145.82,4.88]
[1728684643963,11.8379,145.87,145.83,3.4286]
[1728684645463,8.41,145.87,145.83,3.4286]
[1728684645660,3.4281,145.86,145.83,3.4286]
[1728684645967,8.41,145.87,145.83,3.4286]
[1728684646168,11.838,145.87,145.83,3.4286]
[1728684647168,11.8377,145.88,145.84,3.4284]
[1728684648967,11.8377,145.88,145.82,13.29]
[1728684649173,107.82619472,145.89,145.83,8.41]
[1728684649562,107.82619472,145.89,145.85,3.4281]
[1728684649768,107.82619472,145.89,145.85,8.3081]
[1728684649970,95.98879472,145.89,145.85,13.29]
[1728684650272,95.98879472,145.89,145.86,3.4279]
[1728684653368,8.41,145.89,145.86,3.4279]
[1728684654981,8.41,145.89,145.85,13.29]
[1728684655168,8.41,145.89,145.86,3.428]
[1728684655378,0.12502,145.91,145.88,8.41]
[1728684655673,0.12502,145.91,145.9,11.8371]
[1728684656678,8.41,145.96,145.92,3.4266]
[1728684656979,8.41,145.96,145.92,16.7366]
[1728684657179,11.8359,145.96,145.92,16.7366]
[1728684658369,3.4257,145.96,145.93,11.8363]
[1728684659273,3.55052,145.97,145.94,3.4261]
[1728684659475,3.55052,145.97,145.93,8.41]
[1728684660183,3.55052,145.97,145.93,11.8363]
[1728684660482,3.4257,145.96,145.93,11.8363]
[1728684661180,3.4257,145.96,145.93,3.4263]
[1728684662884,3.4257,145.96,145.93,11.8363]
[1728684663082,3.55052,145.97,145.93,8.41]
[1728684663575,3.55052,145.97,145.93,11.8363]
[1728684666981,0.12502,145.97,145.95,8.41]
[1728684667176,0.12502,145.97,145.96,16.7357]
[1728684668186,0.12502,145.97,145.96,13.31]
[1728684669088,0.12502,145.97,145.96,16.7357]
[1728684677209,3.55052,145.97,145.96,4.9]
[1728684683216,0.12502,145.97,145.96,4.9]
[1728684713420,3.55052,145.97,145.96,4.9]
[1728684717940,0.12502,145.97,145.96,4.9]
[1728684718830,0.12502,145.97,145.96,16.7357]
[1728684736043,0.12502,145.97,145.92,2.8356]
[1728684736248,0.12502,145.97,145.94,8.41]
[1728684736650,3.55052,145.97,145.94,13.25]
[1728684737454,3.55052,145.97,145.94,4.84]
[1728684737641,3.55052,145.97,145.94,13.25]
[1728684737846,0.12502,145.97,145.94,16.6761]
[1728684744255,3.55052,145.97,145.94,16.6761]
[1728684747745,0.12502,145.97,145.94,16.6761]
[1728684750652,0.12502,145.97,145.96,8.41]
[1728684750848,0.12502,145.97,145.96,11.8357]
[1728684756675,0.12502,145.97,145.92,2.8356]
[1728684756870,0.12502,145.97,145.92,7.6756]
[1728684757066,8.53502,145.97,145.92,1.4167]
[1728684757268,8.53502,145.97,145.93,4.84]
[1728684757672,8.41,145.95,145.89,1.2998]
[1728684757974,8.41,145.92,145.88,4.84]
[1728684758175,3.4269,145.91,145.88,4.84]
[1728684758567,8.41,145.92,145.88,4.84]
[1728684758766,8.41,145.91,145.88,4.84]
[1728684759279,11.8369,145.92,145.88,4.84]
[1728684759575,8.41,145.92,145.87,16.6778]
[1728684760370,3.4269,145.91,145.87,16.6778]
[1728684762183,3.4269,145.91,145.87,11.8378]
[1728684762481,3.4269,145.91,145.87,16.6778]
[1728684763669,3.4269,145.91,145.88,8.41]
[1728684774785,3.4269,145.91,145.87,16.6778]
[1728684774993,8.41,145.92,145.87,16.6778]
[1728684775293,8.41,145.89,145.81,4.0164]
[1728684775593,3.4278,145.87,145.82,8.41]
[1728684775793,8.41,145.88,145.83,8.2686]
[1728684776296,8.41,145.88,145.83,13.25]
[1728684776888,4.84,145.9,145.84,8.41]
[1728684777089,13.25,145.9,145.84,11.8385]
[1728684777586,8.41,145.89,145.84,8.41]
[1728684777789,8.41,145.88,145.83,16.6787]
[1728684778496,3.428,145.87,145.83,16.6787]
[1728684779991,3.4281,145.86,145.83,8.2687]
[1728684780190,3.4281,145.86,145.83,4.84]
[1728684783692,3.4281,145.86,145.83,13.25]
[1728684783995,11.8381,145.86,145.83,4.84]
[1728684785693,11.8381,145.86,145.81,3.4292]
[1728684785894,3.4292,145.81,145.8,19.34182448]
[1728684786089,11.8392,145.81,145.8,19.34182448]
[1728684791401,3.4292,145.81,145.8,19.34182448]
[1728684791603,11.8392,145.81,145.8,19.34182448]
[1728684798004,1.2983,145.83,145.8,19.34182448]
[1728684798205,3.4292,145.82,145.8,19.34182448]
[1728684798908,3.4288,145.83,145.8,19.34182448]
[1728684799117,6.1305,145.87,145.8,19.34182448]
[1728684799306,8.41,145.85,145.8,19.34182448]
[1728684799602,1.2905,145.87,145.8,27.75182448]
[1728684799810,8.41,145.86,145.8,27.75182448]
[1728684800010,3.4286,145.84,145.81,3.4292]
[1728684800505,8.41,145.86,145.82,11.839]
[1728684800703,11.8382,145.86,145.82,11.839]
[1728684802507,3.4282,145.86,145.82,11.839]
[1728684805610,3.4284,145.85,145.82,11.839]
[1728684811612,3.4284,145.85,145.82,3.429]
[1728684817509,3.4284,145.85,145.82,11.839]
[1728684820816,4.84,145.88,145.82,11.839]
[1728684821016,3.4283,145.86,145.82,16.819]
[1728684823614,3.4283,145.86,145.83,11.8387]
[1728684825321,3.4284,145.85,145.82,4.98]
[1728684828524,3.4284,145.85,145.82,8.409]
[1728684831022,3.4284,145.85,145.82,4.98]
[1728684832317,3.4287,145.84,145.82,4.98]
[1728684841820,3.4284,145.85,145.82,16.819]
[1728684842833,3.4284,145.85,145.82,13.39]
[1728684844829,3.4284,145.85,145.82,8.41]
[1728684850135,3.4284,145.85,145.82,11.839]
[1728684857625,3.4284,145.85,145.82,8.41]
[1728684858536,3.4284,145.85,145.81,8.3891]
[1728684860441,3.4284,145.85,145.81,4.96]
[1728684860645,3.4284,145.85,145.82,3.429]
[1728684862845,3.4284,145.85,145.81,4.96]
[1728684863042,3.4284,145.85,145.81,8.3891]
[1728684864044,1.3262,145.89,145.81,13.37]
[1728684864245,1.3262,145.89,145.83,8.41]
[1728684864440,102.91803714,145.9,145.86,8.41]
[1728684864642,102.91803714,145.9,145.87,3.4277]
[1728684865547,102.91803714,145.9,145.87,8.3877]
[1728684868043,106.34513714,145.9,145.87,8.3877]
[1728684868356,106.34513714,145.9,145.87,4.96]
[1728684873049,3.4275,145.89,145.87,4.96]
[1728684878962,102.91803714,145.9,145.87,4.96]
[1728684879144,106.34523714,145.9,145.87,8.3877]
[1728684879857,102.91803714,145.9,145.87,13.37]
[1728684880058,0.12502,145.91,145.87,13.37]
[1728684880653,0.12502,145.91,145.89,3.4273]
[1728684888058,0.12502,145.91,145.89,11.8373]
[1728684904573,0.12502,145.91,145.9,11.8371]
[1728684906263,0.12502,145.91,145.88,3.4275]
[1728684906464,0.12502,145.91,145.88,11.8375]
[1728684907268,0.12502,145.91,145.88,8.41]
[1728684907464,0.12502,145.91,145.89,3.4273]
[1728684923075,0.12502,145.91,145.89,8.2673]
[1728684934306,3.55212,145.91,145.89,4.84]
[1728684936699,0.12502,145.91,145.81,88.82127743]
[1728684936901,11.8372,145.9,145.86,11.8379]
[1728684937111,11.8372,145.9,145.86,16.6779]
[1728684939612,3.4274,145.89,145.86,16.6779]
[1728684940304,3.4274,145.89,145.86,11.8379]
[1728684940508,3.4274,145.89,145.86,16.6779]
[1728684943406,3.4274,145.89,145.87,8.41]
[1728684957622,3.4273,145.9,145.87,11.8378]
[1728684959324,3.4274,145.89,145.87,8.41]
[1728684965430,3.4273,145.9,145.87,8.41]
[1728684968827,3.4273,145.9,145.86,8.268]
[1728684969429,3.4273,145.9,145.86,16.678]
[1728684971333,3.4273,145.9,145.86,13.25]
[1728684971529,8.41,145.87,145.82,2.7195]
[1728684971938,8.41,145.86,145.82,4.84]
[1728684972132,11.8383,145.85,145.82,4.84]
[1728684972437,8.41,145.85,145.82,4.84]
[1728684973231,8.41,145.84,145.8,19.34182448]
[1728684973528,4.84,145.88,145.8,19.34182448]
[1728684973529,8.41,145.83,145.8,19.34182448]
[1728684974633,4.84,145.88,145.81,8.41]
[1728684974841,8.41,145.86,145.81,8.41]
[1728684975730,3.4285,145.85,145.81,11.8391]
[1728684975936,11.8385,145.85,145.81,3.4291]
[1728684980530,8.41,145.85,145.81,3.4291]
[1728684980733,3.4286,145.84,145.81,3.4291]
[1728684982641,3.4286,145.84,145.8,31.18122448]
[1728684984445,3.4286,145.84,145.81,3.4292]
[1728684986645,3.4286,145.84,145.8,31.18122448]
[1728684989840,3.4286,145.84,145.8,27.75182448]
[1728684990044,3.4286,145.84,145.81,3.4292]
[1728684990945,4.84,145.88,145.81,8.41]
[1728684991147,11.8382,145.86,145.82,3.4289]
[1728684991946,3.4283,145.85,145.82,3.4289]
[1728684992741,3.4282,145.86,145.82,3.4289]
[1728684992937,8.41,145.85,145.82,3.4289]
[1728684993136,8.41,145.85,145.8,31.18112448]
[1728684993340,3.4288,145.84,145.8,31.18112448]
[1728684996849,3.4288,145.84,145.8,22.77112448]
[1728684997251,3.4288,145.84,145.8,31.18112448]
[1728684998040,3.4288,145.84,145.8,27.75182448]
[1728684998245,3.4288,145.84,145.81,3.4292]
[1728684998649,3.4288,145.84,145.81,11.8392]
[1728684998842,3.4288,145.84,145.81,3.4292]
[1728684999052,3.4288,145.84,145.81,11.8392]
[1728685001357,3.4288,145.84,145.81,3.4292]
[1728685001553,8.41,145.85,145.8,19.34182448]
[1728685001759,3.4289,145.83,145.8,22.77122448]
[1728685005359,4.84,145.89,145.81,8.41]
[1728685005654,3.4285,145.85,145.81,11.8392]
[1728685007962,3.4279,145.87,145.83,3.4286]
[1728685009765,8.41,145.88,145.83,3.4286]
[1728685009964,3.4282,145.86,145.83,3.4286]
[1728685011564,3.4277,145.88,145.85,3.4282]
[1728685011773,3.4277,145.88,145.83,8.41]
[1728685011957,8.41,145.89,145.83,8.41]
[1728685012463,3.428,145.87,145.83,11.8387]
[1728685013365,3.428,145.87,145.84,3.4285]
[1728685014266,3.4281,145.86,145.83,11.8387]
[1728685018667,3.4279,145.87,145.83,11.8387]
[1728685019271,8.41,145.87,145.83,3.4287]
[1728685019464,8.41,145.85,145.82,4.84]
[1728685019967,3.4285,145.85,145.82,4.84]
[1728685021166,3.4277,145.88,145.83,3.4287]
[1728685021361,8.41,145.87,145.82,4.84]
[1728685021865,3.4283,145.85,145.82,8.2688]
[1728685022261,11.8383,145.85,145.82,8.2688]
[1728685023262,3.4289,145.83,145.81,4.84]
[1728685023565,8.41,145.84,145.81,4.84]
[1728685023767,11.8387,145.84,145.81,8.2692]
[1728685024365,8.41,145.84,145.81,4.84]
[1728685024562,11.8386,145.84,145.81,4.84]
[1728685025363,8.41,145.82,145.8,19.34182448]
[1728685025566,8.41,145.81,145.8,19.34182448]
[1728685026570,11.8392,145.81,145.8,19.34182448]
[1728685026957,3.4292,145.81,145.8,19.34182448]
[1728685029966,11.8392,145.81,145.8,19.34182448]
[1728685030270,8.41,145.81,145.79,12.27628075]
[1728685030469,3.4295,145.8,145.79,12.27628075]
[1728685030772,6.81153017,145.8,145.79,12.27628075]
[1728685032067,15.22153017,145.8,145.79,12.27628075]
[1728685033263,11.8395,145.8,145.79,12.27628075]
[1728685033565,11.8395,145.8,145.79,8.87628075]
[1728685033875,11.83469921,145.8,145.78,32.46055094]
[1728685034067,3.4297,145.79,145.78,32.46055094]
[1728685034973,11.8397,145.79,145.78,32.46055094]
[1728685036673,3.4297,145.79,145.78,32.46055094]
[1728685036967,11.8397,145.79,145.78,32.46055094]
[1728685040565,3.4297,145.79,145.78,32.46055094]
[1728685040765,102.97533879,145.81,145.78,32.46055094]
[1728685041268,106.40463879,145.81,145.78,35.89035094]
[1728685041469,106.40463879,145.81,145.78,32.46055094]
[1728685042372,3.40696799,145.84,145.78,40.87055094]
[1728685042675,3.4291,145.82,145.78,44.30035094]
[1728685043069,3.429,145.82,145.79,3.4296]
[1728685043367,3.429,145.82,145.78,40.87055094]
[1728685043574,11.839,145.82,145.78,32.46055094]
[1728685043968,3.429,145.82,145.78,44.30045094]
[1728685045771,3.429,145.82,145.79,3.4297]
[1728685046172,3.429,145.82,145.78,40.87055094]
[1728685046373,3.429,145.82,145.78,44.30045094]
[1728685048982,8.41,145.82,145.78,32.46055094]
[1728685049179,4.84,145.83,145.78,32.46055094]
[1728685049375,8.41,145.79,145.78,32.46055094]
[1728685049872,11.8397,145.79,145.78,32.46055094]
[1728685051776,3.4297,145.79,145.78,32.46055094]
[1728685052075,11.8397,145.79,145.78,32.46055094]
[1728685052279,3.4299,145.78,145.77,22.95572007]
[1728685053980,11.8399,145.78,145.77,22.95572007]
[1728685056376,3.4299,145.78,145.77,22.95572007]
[1728685056577,11.8399,145.78,145.77,22.95572007]
[1728685061987,3.4299,145.78,145.77,22.95572007]
[1728685062187,11.8399,145.78,145.77,22.95572007]
[1728685062586,3.4299,145.78,145.77,22.95572007]
[1728685062786,11.8399,145.78,145.77,22.95572007]
[1728685068084,3.4299,145.78,145.77,22.95572007]
[1728685068491,11.8399,145.78,145.77,22.95572007]
[1728685069281,3.4299,145.78,145.77,22.95572007]
[1728685069590,11.8399,145.78,145.77,22.95572007]
[1728685070292,3.4302,145.77,145.76,12.87772452]
[1728685070993,11.8402,145.77,145.76,12.87772452]
[1728685071386,3.4304,145.76,145.75,23.20720718]
[1728685077395,11.8404,145.76,145.75,23.20720718]
[1728685078094,3.4304,145.76,145.75,23.20720718]
[1728685078488,11.8403,145.77,145.75,23.20720718]
[1728685079402,3.4304,145.76,145.75,23.20720718]
[1728685079890,8.41,145.77,145.75,23.20720718]
[1728685080099,5.0,145.78,145.75,23.20720718]
[1728685080100,106.42059602,145.81,145.77,3.4302]
[1728685080290,102.99119602,145.81,145.76,12.4325]
[1728685080492,8.41,145.79,145.76,4.0225]
[1728685080689,11.8398,145.79,145.76,4.0225]
[1728685081295,3.4302,145.77,145.76,4.0225]
[1728685082804,3.4304,145.76,145.75,23.20720718]
[1728685082996,107.99119602,145.81,145.75,23.20720718]
[1728685083299,8.41,145.77,145.75,23.20720718]
[1728685083705,11.8404,145.76,145.75,23.20720718]
[1728685085592,15.185846,145.76,145.75,23.20720718]
[1728685086608,6.775846,145.76,145.75,23.20720718]
[1728685086815,11.8404,145.76,145.75,23.20720718]